Cogmind - Beta 15 @@@ ROGUE MODE // 2025.08.07 @ 21:22:55 Player: P9H Result: Destroyed by S-27 Virus with Autogun Performance ------------- Evolutions (3) 1500 Regions Visited (10) 2000 Robots Destroyed (77) 385 Value Destroyed (2016) 2016 Prototype IDs (0) 0 Alien Tech Used (0) 0 Bonus (67) 67 TOTAL SCORE: 5968 Bonus ------- Follower Combat Kills 67 Cogmind --------- Core Integrity 0/700 Matter 156/300 Energy 100/100 System Corruption 7% Temperature Cool (0) Movement Core (50) Location -7/Factory Parts ------- > --- POWER (2) -------- (None) > --- PROPULSION (4) --- (None) > --- UTILITY (4) ------ Machine Analyzer Hacking Suite > --- WEAPON (3) ------- (None) > --- INVENTORY (5) ---- Light Nuclear Core Micro Nuclear Core Small Matter Pod (50) Matter Filter Scythe Peak State ------------ > --- POWER ------------ Micro Nuclear Core > --- PROPULSION ------- Light Treads Armored Treads > --- UTILITY ---------- Humpback Weight Redist. System Machine Analyzer > --- WEAPON ----------- Flak Cannon Flak Cannon Flak Cannon > --- INVENTORY -------- Ion Engine Ion Engine Light Ion Engine Light Deuterium Engine Light Nuclear Core Light Nuclear Core Light Nuclear Core Light Nuclear Core Light Nuclear Core Light Nuclear Core Light Nuclear Core Micro Nuclear Core Micro Nuclear Core Light Angular Momentum Engine Light Treads Light Treads Light Treads Improved Treads Improved Treads Armored Treads Flight Unit Flight Unit Flight Unit Flight Unit Huge Storage Unit Small Matter Pod Matter Filter Hardened Light Armor Plating Hacking Suite Tractor Beam Recalibrator Gauss Rifle Flak Cannon Heavy Mace [Rating: 32] Favorites ----------- Power Ion Engine Engine Ion Engine Power Core Micro Nuclear Core Propulsion Light Treads Treads Light Treads Wheel Armored Wheel Flight Unit Flight Unit Utility Huge Storage Unit Device Tractor Beam Storage Huge Storage Unit Processor Machine Analyzer Hackware Hacking Suite Weapon Flak Cannon Energy Gun Small Laser Energy Cannon Light EM Pulse Cannon Ballistic Gun Light Assault Rifle Ballistic Cannon Flak Cannon Launcher Grenade Launcher Impact Weapon Maul Slashing Weapon Greatsword Build | -11 -10 -10 -9 -9 -9 -8 -8 -7 -7 -7 ------- Run | Yrd Mat Min Mat Min Exi Min Mat Fac Was Fac Slots Evolved 6 | . . . 2 . . . 2 2 . . Power 1 | . . . . . . . . 1 . . Propulsion 2 | . . . . . . . 1 1 . . Utility 2 | . . . 1 . . . 1 . . . Weapon 1 | . . . 1 . . . . . . . Parts Attached 55 | 6 9 2 16 4 1 1 11 2 . 3 Power 8 | 1 1 . 4 . . . 1 . . 1 Engine 6 | 1 1 . 4 . . . . . . . Core 2 | . . . . . . . 1 . . 1 Reactor . | . . . . . . . . . . . Propulsion 16 | 2 2 1 4 1 . . 5 . . 1 Treads 7 | 2 . . 1 1 . . 3 . . . Leg . | . . . . . . . . . . . Wheel 6 | . 2 1 3 . . . . . . . Hover . | . . . . . . . . . . . Flight 3 | . . . . . . . 2 . . 1 Utility 13 | 1 3 1 2 1 . 1 3 1 . . Device 5 | . . 1 1 1 . 1 1 . . . Storage 4 | 1 2 . . . . . 1 . . . Processor 2 | . 1 . 1 . . . . . . . Hackware 2 | . . . . . . . 1 1 . . Protection . | . . . . . . . . . . . Artifact . | . . . . . . . . . . . Weapon 18 | 2 3 . 6 2 1 . 2 1 . 1 Energy Gun 5 | 2 1 . 2 . . . . . . . Energy Cannon 1 | . . . 1 . . . . . . . Ballistic Gun 2 | . 1 . . . . . 1 . . . Ballistic Cannon 5 | . 1 . . 2 1 . 1 . . . Launcher 2 | . . . 2 . . . . . . . Special Weapon . | . . . . . . . . . . . Impact Weapon 2 | . . . 1 . . . . 1 . . Slashing Weapon 1 | . . . . . . . . . . 1 Piercing Weapon . | . . . . . . . . . . . Special Melee Weapon . | . . . . . . . . . . . Unidentified Prototypes . | . . . . . . . . . . . Parts Lost 35 | . 4 2 10 . . 1 12 . . 6 Power 6 | . 1 . 3 . . . 2 . . . Propulsion 10 | . . 1 3 . . . 4 . . 2 Utility 5 | . . . 1 . . 1 1 . . 2 Weapon 14 | . 3 1 3 . . . 5 . . 2 Highest Loss Streak 12 | . 2 2 4 . . 1 12 . . 5 To Critical Strikes . | . . . . . . . . . . . Average Backups 22 | 4 15 21 23 24 24 23 29 5 5 4 Power 6 | . 1 4 4 7 8 8 11 2 2 1 Propulsion 9 | 1 9 13 12 9 10 10 9 1 1 . Utility 3 | . 2 2 4 3 3 3 5 2 2 2 Weapon 2 | 1 2 2 2 3 2 2 2 . . . Tool/Special . | . . . . . . . . . . . Unused Backups 35 | . 1 . 4 1 1 . 23 . . 5 Power 15 | . . . 1 . 1 . 12 . . 1 Propulsion 11 | . 1 . 1 1 . . 8 . . . Utility 6 | . . . 2 . . . 2 . . 2 Weapon 3 | . . . . . . . 1 . . 2 Tool/Special . | . . . . . . . . . . . Average Slot Usage (%) 87 | . 82 86 74 99 91 99 87 39 46 52 Engine 10 | . 13 14 10 11 11 11 8 . . . Treads 14 | . 25 . . 11 11 17 25 . . . Wheel 7 | . 2 25 15 11 11 4 . . . . Device 8 | . . 14 6 11 11 10 8 7 7 5 Storage 10 | . 14 14 11 11 11 11 8 . . . Processor 7 | . . . 5 11 11 11 9 7 7 7 Energy Gun 5 | . 19 . 5 12 . . . . . . Ballistic Gun 1 | . 3 14 2 . . . . . . . Ballistic Cannon 17 | . 3 3 . 19 25 33 26 . . . Impact Weapon 1 | . . . 7 . . . . 4 7 5 Peak Build Rating 32 | 6 10 9 18 20 22 25 32 16 16 29 Average Rating 17 | 3 6 8 12 19 19 23 26 15 16 21 On Entrance 13 | . 6 8 8 16 19 22 24 10 16 16 Naked Turns . | . . . . . . . . . . . Heaviest Build 223 | 13 89 90 96 99 104 104 223 4 4 9 Greatest Support 66 | 40 40 26 26 12 12 40 66 10 10 14 Greatest Overweight (x) 9 | 1 4 8 9 8 8 8 8 . . 1 Average Overweight (x) 4 | . 1 3 5 7 8 5 2 . . . Largest Inventory Capacity 35 | 8 25 25 25 25 25 25 35 5 5 5 Average Capacity 24 | 6 20 25 25 25 25 25 34 5 5 5 Most Carried 35 | 6 23 22 25 25 25 25 35 5 5 5 Average Carried 22 | 4 15 21 23 24 24 24 29 5 5 4 Final Capacity 25 | 8 25 25 25 25 25 25 5 5 5 5 Final Carried 25 | 4 23 21 25 25 25 25 5 5 5 5 Class Distribution -------------------- 46% | Mutant 22% | Skirmisher 11% | Hauler-Skirmisher 10% | Scavenger-Skirmisher 4% | Hacker-Mutant Dominant Class ---------------- Mutant | -10/Materials Mutant | -10/Mines Mutant | -9/Materials Scavenger-Skirmisher | -9/Mines Mutant | -9/Exiles Skirmisher | -8/Mines Hauler-Skirmisher | -8/Materials Hacker-Mutant | -7/Factory Hacker-Mutant | -7/Waste Hacker-Mutant | -7/Factory Resources | -11 -10 -10 -9 -9 -9 -8 -8 -7 -7 -7 ----------- Run | Yrd Mat Min Mat Min Exi Min Mat Fac Was Fac Matter Collected 1655 | 189 180 57 329 159 . 224 393 . . 124 Remotely 96 | . . . . 20 . 76 . . . . Salvage Created 1837 | . 485 6 605 216 . 161 336 . . 28 Parts 123 | . 37 . 37 15 . 12 19 . . 3 Haulers Intercepted . | . . . . . . . . . . . Recyclers Shooed . | . . . . . . . . . . . Parts Field Recycled . | . . . . . . . . . . . Retrieved Matter . | . . . . . . . . . . . Parts Self-Destructed . | . . . . . . . . . . . Prevented . | . . . . . . . . . . . Kills | -11 -10 -10 -9 -9 -9 -8 -8 -7 -7 -7 ------- Run | Yrd Mat Min Mat Min Exi Min Mat Fac Was Fac Combat Hostiles Destroyed 58 | . 11 2 17 8 . 12 8 . . . Melee 4 | . . . 4 . . . . . . . Guns 8 | . 5 1 1 1 . . . . . . Cannons 36 | . 5 1 3 7 . 12 8 . . . AOE 9 | . 1 . 8 . . . . . . . Classes Destroyed 14 | . 7 1 2 2 . . 2 . . . Worker 5 | . 1 . 3 . . . 1 . . . Builder 5 | . 1 . 1 . . . 1 . . 2 Tunneler 1 | . 1 . . . . . . . . . Recycler 2 | . . . . 1 . . 1 . . . Mechanic 1 | . . . 1 . . . . . . . Operator 1 | . 1 . . . . . . . . . Watcher 4 | . 1 . 2 . . . 1 . . . Swarmer 20 | . 3 . 3 5 . 9 . . . . Grunt 26 | . 8 . 10 2 . 2 4 . . . Brawler 3 | . . . . 1 . 1 1 . . . Sentry 5 | . . . 4 . . . 1 . . . Demolisher 2 | . . 2 . . . . . . . . Specialist 1 | . . . . . . . 1 . . . Hunter 1 | . . . . . . . 1 . . . Best Kill Streak 7 | . 5 2 7 6 . 4 4 . . 2 Combat Bots Only 6 | . 3 2 6 5 . 4 3 . . . Max Kills in Single Turn 3 | . 3 1 3 1 . 2 2 . . 1 Gunslinging . | . . . . . . . . . . . Exploded 2 | . 1 . 2 . . . . . . . Melee 1 | . . . 1 . . . . . . . Uniques/NPCs Destroyed . | . . . . . . . . . . . Combat | -11 -10 -10 -9 -9 -9 -8 -8 -7 -7 -7 -------- Run | Yrd Mat Min Mat Min Exi Min Mat Fac Was Fac Hostile Shots Fired 484 | . 69 7 120 20 . 43 149 . . 76 Missed 155 | . 23 2 42 6 . 6 51 . . 25 Hits 329 | . 46 5 78 14 . 37 98 . . 51 Melee 2 | . . . . 2 . . . . . . Projectile 327 | . 46 5 78 12 . 37 98 . . 51 AOE 8 | . . 7 . . . . 1 . . . Critical Strikes 4 | . . . 1 1 . . 2 . . . Damage Taken 5735 | . 638 283 1126 169 . 362 2105 . . 1052 Core 1657 | . 134 84 335 8 . 20 376 . . 700 Absorbed by Shields . | . . . . . . . . . . . Core Remaining (%) 38 | 100 . 12 . . . 9 31 . . . Volleys Fired 117 | . 36 4 23 12 . 15 27 . . . Largest 3 | . 2 2 3 3 . 3 3 . . . Hottest 152 | . 80 50 152 133 . 111 111 . . . Shots Fired 282 | . 72 7 42 36 . 45 80 . . . Gun 99 | . 61 4 14 17 . . 3 . . . Cannon 170 | . 11 3 15 19 . 45 77 . . . Launcher 13 | . . . 13 . . . . . . . Special . | . . . . . . . . . . . Kinetic 177 | . 22 7 4 19 . 45 80 . . . Thermal 63 | . 36 . 10 17 . . . . . . Explosive 13 | . . . 13 . . . . . . . Electromagnetic 29 | . 14 . 15 . . . . . . . Robot Hit Streak 27 | . 7 5 27 10 . 3 10 . . . Robot Miss Streak 20 | . 5 1 1 10 . 20 7 . . . Penetration Max . | . . . . . . . . . . . Secondary Targets . | . . . . . . . . . . . Shots Hit Robots 212 | . 43 6 51 21 . 26 62 . . 3 Core Hits 164 | . 25 4 31 20 . 29 53 . . 2 Critical Kills 1 | . . . 1 . . . . . . . Critical Parts Destroyed 2 | . . . 2 . . . . . . . Critical Strikes 4 | . . . 4 . . . . . . . Smash 4 | . . . 4 . . . . . . . Melee Attacks 40 | . . . 33 . . . . . . 7 Impact 34 | . . . 33 . . . . . . 1 Slashing 6 | . . . . . . . . . . 6 Piercing . | . . . . . . . . . . . Sneak Attacks 3 | . . . 2 . . . . . . 1 Combat Hostiles . | . . . . . . . . . . . Follow-up Attacks . | . . . . . . . . . . . Damage Inflicted 4777 | . 754 72 1910 304 . 456 1030 . . 251 Guns 732 | . 432 34 144 86 . . 36 . . . Cannons 2105 | . 141 38 258 218 . 456 994 . . . Explosions 840 | . 181 . 649 . . . . . . 10 Melee 1061 | . . . 859 . . . . . . 202 Ramming 39 | . . . . . . . . . . 39 Kinetic 1978 | . 169 72 33 218 . 456 1030 . . . Thermal 556 | . 349 . 111 86 . . . . . 10 Explosive 649 | . . . 649 . . . . . . . Electromagnetic 494 | . 236 . 258 . . . . . . . Impact 859 | . . . 859 . . . . . . . Slashing 202 | . . . . . . . . . . 202 Piercing . | . . . . . . . . . . . Highest Corruption 7 | . . . . . . . . . . 7 Average Corruption 5 | . . . . . . . . . . 5 Corruption Purged . | . . . . . . . . . . . Corruption Blocked . | . . . . . . . . . . . Effects 1 | . . . . . . . . . . 1 Matter Fused 1 | . . . . . . . . . . 1 Overload Shots . | . . . . . . . . . . . Overflow Damage 438 | . . . 250 . . . . . . 188 Projectiles . | . . . . . . . . . . . Explosions 138 | . . . 37 . . . . . . 101 Melee 300 | . . . 213 . . . . . . 87 Knockbacks 46 | . . 1 1 5 . 15 24 . . . Impact 1 | . . . 1 . . . . . . . Kinetic 39 | . . 1 . 4 . 14 20 . . . Secondary 6 | . . . . 1 . 1 4 . . . Self-Inflicted Damage 442 | . 81 . 90 . . . . . . 271 Shots 9 | . 2 . 4 . . . . . . 3 Rammed . | . . . . . . . . . . . Targets Rammed . | . . . . . . . . . . . Kicked . | . . . . . . . . . . . Crushed . | . . . . . . . . . . . Highest Temperature 277 | . 192 . 216 150 . 277 184 . . 3 Average Temperature 62 | . 47 . 89 47 . 88 54 . . 3 Received Heat Transfer 1188 | . 249 . 414 18 . 90 408 . . 9 Siege Activations . | . . . . . . . . . . . Martial Activations . | . . . . . . . . . . . Shielding Activations . | . . . . . . . . . . . Robots Disrupted . | . . . . . . . . . . . Combat Hostiles . | . . . . . . . . . . . Robots Corrupted 1 | . . . 1 . . . . . . . Combat Hostiles 1 | . . . 1 . . . . . . . Parts Fried 7 | . . . 7 . . . . . . . Impact Corruptions 5 | . . . 5 . . . . . . . Robots Melted . | . . . . . . . . . . . Combat Hostiles . | . . . . . . . . . . . Parts Melted 1 | . 1 . . . . . . . . . Heat Transferred 1209 | . 675 . 273 211 . . . . . 50 Parts Sabotaged . | . . . . . . . . . . . Parts Stolen . | . . . . . . . . . . . Parts Stripped . | . . . . . . . . . . . Power Chain Reactions 1 | . 1 . . . . . . . . . Alert | -11 -10 -10 -9 -9 -9 -8 -8 -7 -7 -7 ------- Run | Yrd Mat Min Mat Min Exi Min Mat Fac Was Fac Maximum Alert Level 1 | . . . 1 . . . . . . . Low Security (%) 99 | 100 100 100 98 100 . 100 100 100 100 100 Level 1 . | . . . 1 . . . . . . . Level 2 . | . . . . . . . . . . . Level 3 . | . . . . . . . . . . . Level 4 . | . . . . . . . . . . . Level 5 . | . . . . . . . . . . . High Security . | . . . . . . . . . . . Max Security . | . . . . . . . . . . . Peak Influence 202 | . 96 46 202 126 . 120 90 . . 90 Initial 41 | . . 26 1 41 . . . . . . Average 37 | . 28 27 84 40 . 29 17 . . 14 Influence Increases 1899 | . 378 50 536 277 . 280 242 . . 136 Destroy 0b10 Robot/C 1220 | . 220 40 340 220 . 240 160 . . . Destroy 0b10 Robot/NC 95 | . 25 . 35 5 . . 20 . . 10 Destroy Leader 248 | . 52 10 74 40 . 40 32 . . . Allied During Kill 12 | . . . . 12 . . . . . . Disable Machine 150 | . 15 . 30 . . . . . . 105 Destroy Structure 84 | . 6 . 57 . . . . . . 21 Lose Combat Pursuer 90 | . 60 . . . . . 30 . . . Influence Decreases 1869 | . 309 113 435 322 62 280 242 . . 106 Entered New Map 176 | . . 43 5 66 62 . . . . . Time Decay 1414 | . 269 50 330 236 . 270 213 . . 46 Lost Part 259 | . 40 20 100 . . 10 29 . . 60 Lost Ally 20 | . . . . 20 . . . . . . Squads Dispatched 6 | . 3 . . . . . 2 . . 1 Investigation 2 | . 2 . . . . . . . . . Extermination . | . . . . . . . . . . . Reinforcement 4 | . 1 . . . . . 2 . . 1 Assault . | . . . . . . . . . . . Garrison . | . . . . . . . . . . . Intercept . | . . . . . . . . . . . Searches Triggered . | . . . . . . . . . . . Construction Impeded 1 | . . . . . . . . . . 1 Haulers Reinforced . | . . . . . . . . . . . Active Scanning Responses . | . . . . . . . . . . . Cargo Convoy Interrupts . | . . . . . . . . . . . Stealth | -11 -10 -10 -9 -9 -9 -8 -8 -7 -7 -7 --------- Run | Yrd Mat Min Mat Min Exi Min Mat Fac Was Fac Distress Signals 6 | . 3 . 2 . . . 1 . . . Communications Jammed . | . . . . . . . . . . . Distress Signals . | . . . . . . . . . . . Times Spotted 107 | . 27 2 23 10 . 11 17 . 6 11 Peak Tracking Total 8 | . 4 2 6 4 . 4 5 . 6 8 Tactical Retreats 4 | . 2 . . . . . 2 . . . Traps | -11 -10 -10 -9 -9 -9 -8 -8 -7 -7 -7 ------- Run | Yrd Mat Min Mat Min Exi Min Mat Fac Was Fac Traps Triggered 2 | . 1 . . . . . . 1 . . Indirectly . | . . . . . . . . . . . Trap Hack Attempts . | . . . . . . . . . . . Triggered . | . . . . . . . . . . . Disarmed . | . . . . . . . . . . . Reprogrammed . | . . . . . . . . . . . Reused . | . . . . . . . . . . . Traps Extracted . | . . . . . . . . . . . Installed . | . . . . . . . . . . . Triggered . | . . . . . . . . . . . Machines | -11 -10 -10 -9 -9 -9 -8 -8 -7 -7 -7 ---------- Run | Yrd Mat Min Mat Min Exi Min Mat Fac Was Fac Machines Disabled 10 | . 1 . 2 . . . . . . 7 Max in Single Turn 6 | . 1 . 2 . . . . . . 6 Machines Repaired . | . . . . . . . . . . . Machines Dismantled . | . . . . . . . . . . . Machines Sabotaged . | . . . . . . . . . . . Overloaded Fab Kills . | . . . . . . . . . . . Hacking | -11 -10 -10 -9 -9 -9 -8 -8 -7 -7 -7 --------- Run | Yrd Mat Min Mat Min Exi Min Mat Fac Was Fac Machines Accessed 8 | . 2 . 2 . 4 . . . . . Terminals 4 | . 2 . 2 . . . . . . . Fabricators . | . . . . . . . . . . . Repair Stations . | . . . . . . . . . . . Recycling Units . | . . . . . . . . . . . Scanalyzers . | . . . . . . . . . . . Garrison Access . | . . . . . . . . . . . Total Hacks 11 | . 3 . 4 . 4 . . . . . Successful 4 | . . . . . 4 . . . . . Failed 7 | . 3 . 4 . . . . . . . Catastrophic 1 | . . . 1 . . . . . . . Database Lockouts . | . . . . . . . . . . . Manual 7 | . 3 . 4 . . . . . . . Terminals 7 | . 3 . 4 . . . . . . . Fabricators . | . . . . . . . . . . . Repair Stations . | . . . . . . . . . . . Recycling Units . | . . . . . . . . . . . Scanalyzers . | . . . . . . . . . . . Garrison Access . | . . . . . . . . . . . Terminal Hacks 4 | . . . . . 4 . . . . . Record 4 | . . . . . 4 . . . . . Fabricator Hacks . | . . . . . . . . . . . Repair Station Hacks . | . . . . . . . . . . . Recycling Unit Hacks . | . . . . . . . . . . . Scanalyzer . | . . . . . . . . . . . Garrison Access Hacks . | . . . . . . . . . . . Unauthorized Hacks . | . . . . . . . . . . . Terminals . | . . . . . . . . . . . Fabricators . | . . . . . . . . . . . Repair Stations . | . . . . . . . . . . . Recycling Units . | . . . . . . . . . . . Scanalyzers . | . . . . . . . . . . . Garrison Access . | . . . . . . . . . . . Data Cores Recovered . | . . . . . . . . . . . Used . | . . . . . . . . . . . Hacking Detections 3 | . 1 . 2 . . . . . . . Full Trace Events . | . . . . . . . . . . . Feedback Events . | . . . . . . . . . . . Feedback Blocked . | . . . . . . . . . . . Robot Schematics Acquired . | . . . . . . . . . . . Robots Built . | . . . . . . . . . . . Authchips . | . . . . . . . . . . . Time . | . . . . . . . . . . . Total Robot Build Rating . | . . . . . . . . . . . Part Schematics Acquired . | . . . . . . . . . . . Parts Built . | . . . . . . . . . . . Authchips . | . . . . . . . . . . . Time . | . . . . . . . . . . . Total Part Build Rating . | . . . . . . . . . . . Parts Repaired . | . . . . . . . . . . . Time . | . . . . . . . . . . . Parts Recycled . | . . . . . . . . . . . Recycled Matter . | . . . . . . . . . . . Retrieved Matter . | . . . . . . . . . . . Retrieved Components . | . . . . . . . . . . . Parts Scanalyzed . | . . . . . . . . . . . Part Schematics Acquired . | . . . . . . . . . . . Parts Damaged . | . . . . . . . . . . . Bothacking | -11 -10 -10 -9 -9 -9 -8 -8 -7 -7 -7 ------------ Run | Yrd Mat Min Mat Min Exi Min Mat Fac Was Fac Used RIF Installer . | . . . . . . . . . . . Robots Hacked . | . . . . . . . . . . . Non-combat . | . . . . . . . . . . . Combat . | . . . . . . . . . . . Robot Hacks Applied . | . . . . . . . . . . . Relay Couplers Released . | . . . . . . . . . . . Fabnet Peak Effective % . | . . . . . . . . . . . Robots Rewired . | . . . . . . . . . . . Allies Hacked . | . . . . . . . . . . . Hacks Repelled . | . . . . . . . . . . . Allies | -11 -10 -10 -9 -9 -9 -8 -8 -7 -7 -7 -------- Run | Yrd Mat Min Mat Min Exi Min Mat Fac Was Fac Total Allies 3 | . . . . 3 . . . . . . Largest Group 3 | . . . . 3 . . . . . . Highest-Rated Group 40 | . . . . 40 . . . . . . Highest-Rated Ally 16 | . . . . 16 . . . . . . Total Orders . | . . . . . . . . . . . Ally Attacks 11 | . . . . 11 . . . . . . Total Damage 168 | . . . . 168 . . . . . . Kills 3 | . . . . 3 . . . . . . Allies Corrupted . | . . . . . . . . . . . Allies Melted . | . . . . . . . . . . . Intel | -11 -10 -10 -9 -9 -9 -8 -8 -7 -7 -7 ------- Run | Yrd Mat Min Mat Min Exi Min Mat Fac Was Fac Active Infowar (turns) 5225 | . . . 541 721 1882 1067 862 38 55 59 Machine Analysis 5225 | . . . 541 721 1882 1067 862 38 55 59 Robot Analysis Total . | . . . . . . . . . . . Derelict Logs Recovered 3 | . . . . 3 . . . . . . Drone Launches . | . . . . . . . . . . . Drone Recoveries . | . . . . . . . . . . . Exploration | -11 -10 -10 -9 -9 -9 -8 -8 -7 -7 -7 ------------- Run | Yrd Mat Min Mat Min Exi Min Mat Fac Was Fac Turns Passed 7196 | 69 1170 107 989 721 1882 1067 862 38 55 236 Spaces Moved 3227 | 45 447 65 436 323 895 382 200 87 137 210 Core 84 | 15 . . . . . . . . . 69 Treads 808 | 30 406 . . . . 190 182 . . . Legs . | . . . . . . . . . . . Wheels 1952 | . 41 65 436 323 895 192 . . . . Hover . | . . . . . . . . . . . Flight 383 | . . . . . . . 18 87 137 141 Fastest Speed 37 | 50 140 135 135 195 210 210 37 40 40 37 Average Speed 199 | 125 225 144 172 206 210 264 366 40 40 69 Slowest Speed 810 | 160 320 200 215 210 210 320 810 40 40 117 Overloaded Moves . | . . . . . . . . . . . Propulsion Burnouts . | . . . . . . . . . . . Robots Hopped . | . . . . . . . . . . . Potential Cave-ins . | . . . . . . . . . . . Cave-ins Triggered . | . . . . . . . . . . . Exploration Rate (%) 43 | 4 68 19 37 63 91 90 15 3 80 8 Regions Visited 10 Branch Regions 4 Pre-discovered Areas 1 | . . . . 1 . . . . . . Known Exits Taken . | . . . . . . . . . . . Unknown Exits Taken 8 | 1 1 1 1 1 1 1 1 . . . Scrap Searched 2 | . . . . 1 . 1 . . . . Spaces Dug 6 | . . . 6 . . . . . . . Terrain Destroyed 87 | . 5 . 63 . . . . . . 19 Melee 6 | . . . 6 . . . . . . . Projectile . | . . . . . . . . . . . AOE 81 | . 5 . 57 . . . . . . 19 Terrain Rammed 5 | . . . . . . . . . . 5 Walls Destroyed . | . . . . . . . . . . . Machines Disabled . | . . . . . . . . . . . Actions | -11 -10 -10 -9 -9 -9 -8 -8 -7 -7 -7 --------- Run | Yrd Mat Min Mat Min Exi Min Mat Fac Was Fac Total 3680 | 56 540 72 576 351 899 406 269 89 136 286 Wait 122 | . 20 2 29 5 . 3 7 . . 56 Move 3218 | 44 446 64 435 322 894 381 199 87 136 210 Hop . | . . . . . . . . . . . Pick Up 81 | 6 25 . 25 4 1 2 15 . . 3 Fast Attach 18 | 4 2 . 3 . 1 1 4 2 . 1 Attach 33 | 2 5 2 10 2 1 1 8 . . 2 Detach 2 | . . . . . . . 2 . . . Swap 12 | . 2 . 6 2 . 1 1 . . . Drop 32 | . 4 . 12 4 2 2 6 . . 2 Fire 117 | . 36 4 23 12 . 15 27 . . . Melee 40 | . . . 33 . . . . . . 7 Ram 5 | . . . . . . . . . . 5 Kick . | . . . . . . . . . . . Crush . | . . . . . . . . . . . Escape Stasis . | . . . . . . . . . . . Rewire . | . . . . . . . . . . . Trap . | . . . . . . . . . . . Miscellaneous . | . . . . . . . . . . . Route ------- -11/Scrapyard -10/Materials (discovered 5 exits: *Mat x2 / [*Min x2] / [*Sub]) -10/Mines -9/Materials (discovered 3 exits: [*Min x2] / [*Sto]) -9/Mines (discovered 3 exits: [*Mat] / *Exi / [*Zio]) -9/Exiles (discovered 2 exits: [*Min x2]) -8/Mines -8/Materials -7/Factory -7/Waste -7/Factory History --------- Turn | Location | Event 13 | -11/Scrapyard | Discovered new exit (range 16) 70 | -11/Scrapyard | Entered Materials 201 | -10/Materials | Discovered new exit (range 9) 338 | -10/Materials | Build established: Mutant 464 | -10/Materials | Discovered new exit (range 15) 670 | -10/Materials | Derelicts attacked the area 674 | -10/Materials | Discovered new exit (range 14) 1072 | -10/Materials | Core integrity fell below 50% 1109 | -10/Materials | Discovered new exit (range 12) 1230 | -10/Materials | Discovered new exit (range 8) 1240 | -10/Materials | Entered Mines 1241 | -10/Mines | Assembled infested the area 1262 | -10/Mines | Core integrity fell below 20% 1334 | -10/Mines | Discovered new exit (range 12) 1347 | -10/Mines | Entered Materials 1347 | -9/Materials | Evolved 2 slots: Utility x1, Weapon x1 1435 | -9/Materials | Discovered new exit (range 7) 1515 | -9/Materials | Discovered new exit (range 14) 1621 | -9/Materials | Lost 4 parts (1p1n1u1w) 1742 | -9/Materials | Core integrity fell below 50% 2251 | -9/Materials | Discovered new exit (range 16) 2329 | -9/Materials | Core integrity fell below 20% 2336 | -9/Materials | Entered Mines 2379 | -9/Mines | Learned Materials garrison access intel 2430 | -9/Mines | Discovered new exit (range 6) 2457 | -9/Mines | Met a Derelict bent on vengeance 2503 | -9/Mines | Build established: Scavenger-Skirmisher 2516 | -9/Mines | Learned Materials security intel 2552 | -9/Mines | Assisted by bots powering up and referring to "LRC-V3" 2597 | -9/Mines | A Derelict revealed a hidden shortcut to a safe place 2938 | -9/Mines | Lost 4 allies 3049 | -9/Mines | Deemed a non-threat by the Exiles lab entrance 3049 | -9/Mines | Discovered new exit (range 5) 3057 | -9/Mines | Entered Exiles 3057 | -9/Exiles | Found Exiles lab abandoned 3285 | -9/Exiles | Build established: Mutant 3677 | -9/Exiles | Discovered new exit (range 14) 4267 | -9/Exiles | Discovered new exit (range 14) 4708 | -9/Exiles | Build established: Skirmisher 4939 | -9/Exiles | Entered Mines 5984 | -8/Mines | Discovered new exit (range 5) 6006 | -8/Mines | Entered Materials 6006 | -8/Materials | Evolved 2 slots: Propulsion x1, Utility x1 6008 | -8/Materials | Loaded intel: 1 garrison access location 6297 | -8/Materials | Build established: Hauler-Skirmisher 6858 | -8/Materials | Core integrity fell below 50% 6866 | -8/Materials | Discovered new exit (range 4) 6868 | -8/Materials | Entered Factory 6868 | -7/Factory | Evolved 2 slots: Power x1, Propulsion x1 6893 | -7/Factory | Lost 12 parts (2p4n1u5w) 6906 | -7/Factory | Sucked down chute 6906 | -7/Factory | Entered Waste 6912 | -7/Waste | Spotted C-40 Crusher 6924 | -7/Waste | Spotted C-40 Crusher 6929 | -7/Waste | Spotted C-40 Crusher 6934 | -7/Waste | Spotted C-40 Crusher 6947 | -7/Waste | Spotted C-40 Crusher 6949 | -7/Waste | Discovered new exit (range 15) 6949 | -7/Waste | Spotted C-40 Crusher 6961 | -7/Waste | Entered Factory 7147 | -7/Factory | Build established: Hacker-Mutant 7161 | -7/Factory | Core integrity fell below 50% 7185 | -7/Factory | Core integrity fell below 20% 7188 | -7/Factory | Lost 5 parts (2n1u2w) 7197 | -7/Factory | Destroyed by S-27 Virus with Autogun Last Messages --------------- 07144_ Destroyed Flight Unit. 07147_ Greatsword destroyed. 07149_ Slammed into Assembly Bed. 07149_ Destabilizing: System corrupted (+1). 07150_ Slammed into Assembly Bed. 07150_ Destabilizing: System corrupted (+1). 07154_ Weight Redist. System destroyed. 07156_ U-05 Engineer builds a Wall. 07157_ Great Maul destroyed. 07157_ Slammed into Assembly Bed. 07157_ Destabilizing: System corrupted (+1). 07158_ Slammed into Assembly Bed. 07158_ Destabilizing: Core damaged (-28). 07158_ Destabilizing: System corrupted (+2). 07185_ Slammed into Door. 07185_ Destabilizing: System corrupted (+1). 07192_ Acquired 110 matter. 07197_ System corrupted: Matter fused (-6). 07197_ Hacking Suite destroyed. Map ----- +----------------------------------------------------+ | | | | | | | | | | | | | | | | | | | | | | | | | | | | | | | | | | | ????????????????###########??????????????????????? | | ????????????????# #??????????????????????? | | ????????????????# """ """ #??????????????????????? | | ????????????????# """ """ #??????????????????????? | | ????????????????# """ """ #??????????????????????? | | ????????????????# #??????????????????????? | | ????????????????#* #??????????????????????? | | ????????????????# ss!s #??????????????????????? | | ????????????????# = ggs@#??#########+####??????? | | ?????????????########g#/###??# #??????? | | ?????????????# #????# #??????? | | ?????????????# ###### ^ ######## | | ?????????????# # | | ?????????????# # """ ! | | ?????????????# # """ | | ?????????????# """ """ """ """ """ # """ | | ?????????????# " "" """ """ """ """ """ # ! | | ???????????? "R"" """ """ """ """ """ + """ | | ?????????? """" # """ ! | | ?????????? # """ | | ??????????#### ?? # | | ?????????????????? ###+####### ######## | | ??????????????????###??????????# #??????? | | ???????????????????????????????# """ #??????? | | ???????????????????????????????# "Y ! #??????? | | ???????????????????????????????# """ #??????? | | ???????????????????????????????# #??????? | | ??????????????????????????????+ #??????? | | ??????????????????????????????#########+#######?## | | ???????????????????????????????# [ #?#" | | ???????????????????????????????# ! """""" #?#" | | ???????????????????????????????# """""" """ ###" | | ???????????????????????????????# """""" R" # | +----------------------------------------------------+ Best States ------------- Heat Dissipation 38 Energy Generation 15 Energy Capacity 250 Matter Stores 300 Matter Capacity 300 Sight Range 16 Terrain Scan Density 10 Additional Mass Support 6 Evasion (%) 62 Recoil Reduction 3 Offensive Hacking 20 Item Schematics ----------------- None Robot Schematics ------------------ None Fabricated ------------ Nothing Repaired ---------- Nothing Alien Tech Used ----------------- None Achievements -------------- None Challenges ------------ None Game ------ Seed TachyonExplosiveRailgun Manual? 0 Play Time 00:36:53 Cumulative 68.6 hours Start 2025.08.04 @ 22:03:54 End 2025.08.07 @ 21:22:55 Sessions 3 Manual Loads 0 Difficulty Rogue Special Mode None Game No. 127 Rogue 127 Adventurer 0 Explorer 0 Win Type - Total 0 Types 0/0/0/0/0/0/0/0/0/0 Lore% 14 Gallery% 38 Achievement% 31 Wizard Run 0 Options --------- Layout 1 ASCII 1 Keyboard 0 Movement Mouse Keybinds 0 Fullscreen 2 Font 32/SmallcapsGlow Map View 50x35 Zoom Use 0% Tactical HUD 1 Map Filters NONE Filters NONE Steam 1 RUN: 69b01bc5-574c-4fe7-8aeb-dc2f03bc0490